fUST/lending_fUST_20241223
["ID","MTS","AMOUNT","RATE_DAILY","PERIOD"]
[346339205,1734899447846,-500.0,0.0001452,2]
[346339207,1734899447856,-500.0,0.0001452,2]
[346339209,1734899447865,-752.42,0.0001452,2]
[346339211,1734899447875,-168.0,0.0001452,2]
[346339213,1734899447883,-629.53,0.0001452,2]
[346339215,1734899447892,-500.0,0.0001452,2]
[346339217,1734899447902,-2032.24,0.0001452,2]
[346339219,1734899447911,-500.0,0.0001452,2]
[346339221,1734899447920,-500.0,0.0001452,2]
[346339222,1734899447929,-632.76,0.0001452,2]
[346339225,1734899447938,-955.66,0.0001452,2]
[346339227,1734899447948,-500.0,0.0001452,2]
[346339228,1734899447957,-601.33,0.0001452,2]
[346339231,1734899447967,-500.0,0.0001452,2]
[346339233,1734899447976,-1256.22,0.0001452,2]
[346339234,1734899447988,-500.0,0.0001452,2]
[346339237,1734899447999,-664.31,0.0001452,2]
[346339238,1734899448008,-615.02,0.0001452,2]
[346339241,1734899448018,-1257.34,0.0001452,2]
[346339242,1734899448028,-516.04,0.0001452,2]
[346339244,1734899448037,-641.21,0.0001452,2]
[346339246,1734899448047,-500.0,0.0001452,2]
[346339248,1734899448056,-500.0,0.0001452,2]
[346339250,1734899448066,-500.0,0.0001452,2]
[346339252,1734899448077,-811.1,0.0001452,2]
[346339254,1734899448086,-500.0,0.0001452,2]
[346339256,1734899448095,-524.55719039,0.0001452,2]
[346339258,1734899448105,-201.14,0.0001452,2]
[346339260,1734899448114,-500.0,0.0001452,2]
[346339262,1734899448123,-972.67,0.0001452,2]
[346339264,1734899448133,-500.0,0.0001452,2]
[346339266,1734899448143,-871.97,0.0001452,2]
[346339268,1734899448151,-804.52,0.0001452,2]
[346339270,1734899448160,-1069.41,0.0001452,2]
[346339272,1734899448169,-500.0,0.0001452,2]
[346339274,1734899448178,-500.0,0.0001452,2]
[346339276,1734899448187,-500.0,0.0001452,2]
[346339278,1734899448196,-220.67120363,0.0001452,2]
[346339280,1734899448206,-500.0,0.0001452,2]
[346339282,1734899448215,-500.0,0.0001452,2]
[346339284,1734899448225,-500.0,0.0001452,2]
[346339286,1734899448234,-663.57,0.0001452,2]
[346339288,1734899448243,-791.32,0.0001452,2]
[346339290,1734899448252,-500.0,0.0001452,2]
[346339292,1734899448262,-500.0,0.0001452,2]
[346339294,1734899448271,-500.0,0.0001452,2]
[346339296,1734899448280,-463.94258351,0.0001452,2]
[346339298,1734899448289,-634.01,0.0001452,2]
[346339300,1734899448299,-500.0,0.0001452,2]
[346339302,1734899448309,-672.07,0.0001452,2]
[346339304,1734899448319,-500.0,0.0001452,2]
[346339306,1734899448328,-537.68,0.0001452,2]
[346339308,1734899448338,-838.79,0.0001452,2]
[346339310,1734899448347,-3545.82,0.0001452,2]
[346339312,1734899448356,-500.0,0.0001452,2]
[346339314,1734899448366,-500.0,0.0001452,2]
[346339316,1734899448374,-500.0,0.0001452,2]
[346339318,1734899448384,-500.0,0.0001452,2]
[346339320,1734899448394,-500.0,0.0001452,2]
[346339322,1734899448404,-500.0,0.0001452,2]
[346339324,1734899448414,-500.0,0.0001452,2]
[346339326,1734899448423,-753.35,0.0001452,2]
[346339328,1734899448433,-537.01,0.0001452,2]
[346339330,1734899448443,-1685.38,0.0001452,2]
[346339332,1734899448452,-531.1,0.0001452,2]
[346339334,1734899448462,-11732.06,0.0001452,2]
[346339336,1734899448472,-500.0,0.0001452,2]
[346339338,1734899448482,-500.0,0.0001452,2]
[346339341,1734899448491,-512.75,0.0001452,2]
[346339342,1734899448501,-500.0,0.0001452,2]
[346339345,1734899448511,-500.0,0.0001452,2]
[346339347,1734899448521,-1845.84,0.0001452,2]
[346339349,1734899448531,-500.0,0.0001452,2]
[346339351,1734899448542,-500.0,0.0001452,2]
[346339353,1734899448552,-500.0,0.0001452,2]
[346339355,1734899448565,-579.92,0.0001452,2]
[346339357,1734899448576,-2013.94,0.0001452,2]
[346339359,1734899448586,-506.27,0.0001452,2]
[346339361,1734899448596,-27229.4,0.0001452,2]
[346339363,1734899448606,-500.0,0.0001452,2]
[346339365,1734899448616,-1318.98,0.0001452,2]
[346339367,1734899448626,-7122.45,0.0001452,2]
[346339369,1734899448637,-500.0,0.0001452,2]
[346339371,1734899448647,-1310.49,0.0001452,2]
[346339373,1734899448658,-9053.51,0.0001452,2]
[346339375,1734899448669,-500.0,0.0001452,2]
[346339377,1734899448679,-500.0,0.0001452,2]
[346339379,1734899448690,-230.32456667,0.0001452,2]
[346339381,1734899448700,-500.0,0.0001452,2]
[346339383,1734899448711,-1434.67,0.0001452,2]
[346339385,1734899448723,-500.0,0.0001452,2]
[346339388,1734899448734,-500.0,0.0001452,2]
[346339390,1734899448746,-1202.81,0.0001452,2]
[346339392,1734899448757,-551.91,0.0001452,2]
[346339394,1734899448767,-500.0,0.0001452,2]
[346339396,1734899448777,-500.0,0.0001452,2]
[346339398,1734899448788,-500.0,0.0001452,2]
[346339400,1734899448798,-601.77,0.0001452,2]
[346339402,1734899448810,-637.13,0.0001452,2]
[346339404,1734899448821,-500.0,0.0001452,2]
[346339406,1734899448832,-753.29,0.0001452,2]
[346339408,1734899448843,-661.66,0.0001452,2]
[346339409,1734899448855,-2970.72,0.0001452,2]
[346339411,1734899448864,-500.0,0.0001452,2]
[346339414,1734899448874,-500.0,0.0001452,2]
[346339416,1734899448885,-1261.25,0.0001452,2]
[346339418,1734899448895,-500.0,0.0001452,2]
[346339420,1734899448905,-2865.71,0.0001452,2]
[346339422,1734899448914,-844.59,0.0001452,2]
[346339424,1734899448924,-431.53795872,0.0001452,2]
[346339426,1734899448933,-3391.47,0.0001452,2]
[346339428,1734899448943,-639.42,0.0001452,2]
[346339430,1734899448953,-1571.74,0.0001452,2]
[346339432,1734899448963,-1500.92,0.0001452,2]
[346339434,1734899448972,-500.0,0.0001452,2]
[346339436,1734899448985,-946.43,0.0001452,2]
[346339438,1734899448996,-500.0,0.0001452,2]
[346339440,1734899449006,-1886.65,0.0001452,2]
[346339442,1734899449016,-718.82,0.0001452,2]
[346339444,1734899449027,-814.99,0.0001452,2]
[346339446,1734899449037,-500.0,0.0001452,2]
[346339448,1734899449047,-500.0,0.0001452,2]
[346339450,1734899449057,-500.0,0.0001452,2]
[346339452,1734899449068,-666.0,0.00014694,2]
[346339454,1734899449078,-244.14863209,0.00014794,2]
[346339456,1734899449088,-661.7,0.00014794,2]
[346339458,1734899449099,-500.0,0.00014794,2]
[346339460,1734899449109,-500.0,0.00014794,2]
[346339462,1734899449119,-500.0,0.00014794,2]
[346339464,1734899449129,-500.0,0.00014794,2]
[346339466,1734899449139,-500.0,0.00014794,2]
[346339469,1734899449149,-500.0,0.00014794,2]
[346339471,1734899449160,-527.77306129,0.00014794,2]
[346339473,1734899449170,-633.59,0.00014794,2]
[346339475,1734899449180,-582.95,0.00014794,2]
[346339477,1734899449190,-500.0,0.00014794,2]
[346339479,1734899449200,-988.04,0.00014794,2]
[346339481,1734899449210,-996.84,0.00014794,2]
[346339483,1734899449221,-500.0,0.00014794,2]
[346339485,1734899449231,-500.0,0.00014794,2]
[346339487,1734899449241,-500.0,0.00014794,2]
[346339489,1734899449251,-500.0,0.00014794,2]
[346339491,1734899449262,-500.0,0.00014794,2]
[346339493,1734899449272,-791.35,0.00014794,2]
[346339495,1734899449283,-500.0,0.00014794,2]
[346339497,1734899449293,-1032.67,0.00014794,2]
[346339499,1734899449303,-500.0,0.00014794,2]
[346339501,1734899449314,-500.0,0.00014794,2]
[346339503,1734899449324,-625.52,0.00014794,2]
[346339505,1734899449334,-500.0,0.00014794,2]
[346339507,1734899449345,-622.29,0.00014794,2]
[346339509,1734899449354,-500.0,0.00014794,2]
[346339511,1734899449364,-500.0,0.00014794,2]
[346339513,1734899449374,-500.0,0.00014794,2]
[346339515,1734899449383,-752.42,0.00014794,2]
[346339517,1734899449393,-168.0,0.00014794,2]
[346339519,1734899449403,-629.53,0.00014794,2]
[346339521,1734899449413,-500.0,0.00014794,2]
[346339523,1734899449424,-2032.24,0.00014794,2]
[346339525,1734899449434,-500.0,0.00014794,2]
[346339527,1734899449444,-500.0,0.00014794,2]
[346339529,1734899449454,-632.76,0.00014794,2]
[346339531,1734899449465,-955.66,0.00014794,2]
[346339533,1734899449475,-500.0,0.00014794,2]
[346339535,1734899449485,-601.33,0.00014794,2]
[346339537,1734899449497,-554.36760708,0.00014794,2]
[346339539,1734899449507,-1256.22,0.00014794,2]
[346339541,1734899449518,-500.0,0.00014794,2]
[346339543,1734899449528,-664.31,0.00014794,2]
[346339545,1734899449538,-615.02,0.00014794,2]
[346339547,1734899449548,-1257.34,0.00014794,2]
[346339549,1734899449558,-516.04,0.00014794,2]
[346339551,1734899449568,-641.21,0.00014794,2]
[346339553,1734899449578,-500.0,0.00014794,2]
[346339556,1734899449588,-500.0,0.00014794,2]
[346339558,1734899449598,-500.0,0.00014794,2]
[346339560,1734899449608,-811.1,0.00014794,2]
[346339562,1734899449618,-500.0,0.00014794,2]
[346339564,1734899449629,-500.0,0.00014794,2]
[346339566,1734899449639,-972.67,0.00014794,2]
[346339568,1734899449649,-500.0,0.00014794,2]
[346339570,1734899449658,-871.97,0.00014794,2]
[346339572,1734899449668,-804.52,0.00014794,2]
[346339574,1734899449678,-1069.41,0.00014794,2]
[346339576,1734899449688,-500.0,0.00014794,2]
[346339578,1734899449698,-500.0,0.00014794,2]
[346339580,1734899449708,-500.0,0.00014794,2]
[346339582,1734899449718,-500.0,0.00014794,2]
[346339584,1734899449728,-500.0,0.00014794,2]
[346339586,1734899449741,-500.0,0.00014794,2]
[346339588,1734899449752,-663.57,0.00014794,2]
[346339590,1734899449767,-791.32,0.00014794,2]
[346339592,1734899449777,-500.0,0.00014794,2]
[346339594,1734899449788,-500.0,0.00014794,2]
[346339597,1734899449798,-500.0,0.00014794,2]
[346339598,1734899449810,-634.01,0.00014794,2]
[346339599,1734899449820,-500.0,0.00014794,2]
[346339600,1734899449831,-672.07,0.00014794,2]
[346339601,1734899449842,-500.0,0.00014794,2]
[346339602,1734899449852,-537.68,0.00014794,2]
[346339603,1734899449862,-838.79,0.00014794,2]
[346339604,1734899449872,-3545.82,0.00014794,2]
[346339605,1734899449882,-500.0,0.00014794,2]
[346339606,1734899449892,-500.0,0.00014794,2]
[346339607,1734899449901,-500.0,0.00014794,2]
[346339608,1734899449911,-500.0,0.00014794,2]
[346339609,1734899449920,-500.0,0.00014794,2]
[346339610,1734899449930,-500.0,0.00014794,2]
[346339611,1734899449939,-500.0,0.00014794,2]
[346339612,1734899449949,-753.35,0.00014794,2]
[346339613,1734899449958,-537.01,0.00014794,2]
[346339614,1734899449968,-1685.38,0.00014794,2]
[346339616,1734899449978,-531.1,0.00014794,2]
[346339619,1734899449991,-11732.06,0.00014794,2]
[346339621,1734899450001,-500.0,0.00014794,2]
[346339623,1734899450011,-500.0,0.00014794,2]
[346339625,1734899450021,-512.75,0.00014794,2]
[346339627,1734899450032,-500.0,0.00014794,2]
[346339629,1734899450042,-477.41887098,0.00014794,2]
[346339631,1734899450052,-1845.84,0.00014794,2]
[346339633,1734899450064,-500.0,0.00014794,2]
[346339635,1734899450077,-486.37713704,0.00014794,2]
[346339637,1734899450087,-579.92,0.00014794,2]
[346339639,1734899450098,-2013.94,0.00014794,2]
[346339641,1734899450108,-506.27,0.00014794,2]
[346339643,1734899450119,-27229.4,0.00014794,2]
[346339645,1734899450130,-500.0,0.00014794,2]
[346339648,1734899450141,-500.0,0.00014794,2]
[346339650,1734899450151,-1318.98,0.00014794,2]
[346339652,1734899450161,-7122.45,0.00014794,2]
[346339654,1734899450172,-500.0,0.00014794,2]
[346339656,1734899450182,-1310.49,0.00014794,2]
[346339658,1734899450193,-9053.51,0.00014794,2]
[346339660,1734899450203,-500.0,0.00014794,2]
[346339662,1734899450214,-500.0,0.00014794,2]
[346339664,1734899450225,-500.0,0.00014794,2]
[346339666,1734899450235,-1434.67,0.00014794,2]
[346339668,1734899450246,-500.0,0.00014794,2]
[346339670,1734899450257,-500.0,0.00014794,2]
[346339672,1734899450267,-1202.81,0.00014794,2]
[346339674,1734899450278,-551.91,0.00014794,2]
[346339676,1734899450288,-500.0,0.00014794,2]
[346339678,1734899450299,-500.0,0.00014794,2]
[346339680,1734899450311,-500.0,0.00014794,2]
[346339682,1734899450321,-601.77,0.00014794,2]
[346339684,1734899450333,-637.13,0.00014794,2]
[346339686,1734899450343,-74.13426935,0.00014794,2]
[346339703,1734899450503,-425.86573065,0.00014794,2]
[346339705,1734899450514,-684.13426942,0.00014794,2]
[346339708,1734899450527,-69.15573058,0.00014794,2]
[346339710,1734899450538,-490.84426942,0.00014794,2]
[346339742,1734899450830,-829.57,0.00013698,2]
[346339744,1734899450840,-2146.25,0.00013698,2]
[346339746,1734899450850,-829.57,0.00013972,2]
[346339748,1734899450859,-2146.25,0.00013972,2]
[346339750,1734899450868,-829.57,0.00014246,2]
[346339752,1734899450878,-2146.25,0.00014246,2]
[346339754,1734899450887,-829.57,0.0001452,2]
[346339756,1734899450897,-2146.25,0.0001452,2]
[346339758,1734899450906,-170.81573058,0.00014794,2]
[346339760,1734899450915,-2970.72,0.00014794,2]
[346339762,1734899450925,-500.0,0.00014794,2]
[346339764,1734899450936,-500.0,0.00014794,2]
[346339766,1734899450946,-1261.25,0.00014794,2]
[346339768,1734899450956,-500.0,0.00014794,2]
[346339770,1734899450965,-2865.71,0.00014794,2]
[346339772,1734899450975,-844.59,0.00014794,2]
[346339774,1734899450986,-3391.47,0.00014794,2]
[346339776,1734899450998,-639.42,0.00014794,2]
[346339778,1734899451007,-1571.74,0.00014794,2]
[346339780,1734899451017,-1500.92,0.00014794,2]
[346339782,1734899451028,-500.0,0.00014794,2]
[346339784,1734899451037,-946.43,0.00014794,2]
[346339786,1734899451047,-500.0,0.00014794,2]
[346339788,1734899451060,-1886.65,0.00014794,2]
[346339790,1734899451072,-718.82,0.00014794,2]
[346339792,1734899451083,-814.99,0.00014794,2]
[346339794,1734899451093,-500.0,0.00014794,2]
[346339796,1734899451104,-500.0,0.00014794,2]
[346339799,1734899451114,-500.0,0.00014794,2]
[346339800,1734899451123,-829.57,0.00014794,2]
[346339802,1734899451133,-2146.25,0.00014794,2]
[346339804,1734899451142,-420.0,0.00014818,2]
[346339806,1734899451152,-1000.0,0.00014867,2]
[346339808,1734899451161,-1000.0,0.00014867,2]
[346339810,1734899451171,-420.0,0.00014871,2]
[346339812,1734899451180,-1000.0,0.00014888,2]
[346339814,1734899451190,-153.0,0.00014986,2]
[346339817,1734899451199,-305.4766362,0.00014986,2]
[346339819,1734899451208,-214.0101375,0.00014986,2]
[346339821,1734899451218,-500.0,0.00015013,2]
[346339823,1734899451227,-500.0,0.00015013,2]
[346339825,1734899451237,-661.7,0.00015068,2]
[346339827,1734899451246,-141.11482227,0.00015068,2]
[346339829,1734899451263,-358.88517773,0.00015068,2]
[346339831,1734899451272,-500.0,0.00015068,2]
[346339833,1734899451281,-500.0,0.00015068,2]
[346339835,1734899451290,-500.0,0.00015068,2]
[346339837,1734899451299,-276.76565977,0.00015068,2]
[346339839,1734899451308,-500.0,0.00015068,2]
[346339841,1734899451318,-196.898,0.00015068,2]
[346339843,1734899451327,-201.65742765,0.00015068,2]
[346339845,1734899451336,-633.59,0.00015068,2]
[346339847,1734899451345,-582.95,0.00015068,2]
[346339849,1734899451355,-225.92376261,0.00015068,2]
[346339851,1734899451365,-988.04,0.00015068,2]
[346339853,1734899451374,-996.84,0.00015068,2]
[346339855,1734899451383,-277.62881164,0.00015068,2]
[346339857,1734899451392,-500.0,0.00015068,2]
[346339859,1734899451401,-500.0,0.00015068,2]
[346339861,1734899451410,-500.0,0.00015068,2]
[346339863,1734899451420,-500.0,0.00015068,2]
[346339865,1734899451429,-791.35,0.00015068,2]
[346339867,1734899451438,-500.0,0.00015068,2]
[346339869,1734899451447,-102.4711606,0.00015068,2]
[346339872,1734899451459,-420.87043536,0.00015068,2]
[346339906,1734899451768,-509.32840404,0.00015068,2]
[346339908,1734899451779,-500.0,0.00015068,2]
[346339910,1734899451789,-0.2856181,0.00015068,2]
[346339912,1734899451800,-499.7143819,0.00015068,2]
[346339914,1734899451810,-625.52,0.00015068,2]
[346339916,1734899451821,-214.70185444,0.00015068,2]
[346339918,1734899451830,-304.94129777,0.00015068,2]
[346339921,1734899451846,-317.34870223,0.00015068,2]
[346339923,1734899451855,-500.0,0.00015068,2]
[346339925,1734899451864,-500.0,0.00015068,2]
[346339927,1734899451873,-500.0,0.00015068,2]
[346339929,1734899451882,-752.42,0.00015068,2]
[346339931,1734899451891,-168.0,0.00015068,2]
[346339933,1734899451901,-629.53,0.00015068,2]
[346339935,1734899451910,-500.0,0.00015068,2]
[346339937,1734899451920,-2032.24,0.00015068,2]
[346339939,1734899451929,-509.60527876,0.00015068,2]
[346339941,1734899451938,-500.0,0.00015068,2]
[346339943,1734899451948,-632.76,0.00015068,2]
[346339945,1734899451957,-955.66,0.00015068,2]
[346339947,1734899451966,-500.0,0.00015068,2]
[346339949,1734899451976,-601.33,0.00015068,2]
[346339951,1734899451987,-1256.22,0.00015068,2]
[346339953,1734899451997,-500.0,0.00015068,2]
[346339955,1734899452006,-664.31,0.00015068,2]
[346339957,1734899452015,-615.02,0.00015068,2]
[346339959,1734899452026,-1257.34,0.00015068,2]
[346339961,1734899452036,-516.04,0.00015068,2]
[346339963,1734899452045,-641.21,0.00015068,2]
[346339965,1734899452055,-500.0,0.00015068,2]
[346339967,1734899452066,-500.0,0.00015068,2]
[346339969,1734899452077,-500.0,0.00015068,2]
[346339971,1734899452087,-811.1,0.00015068,2]
[346339973,1734899452096,-500.0,0.00015068,2]
[346339975,1734899452106,-500.0,0.00015068,2]
[346339977,1734899452116,-972.67,0.00015068,2]
[346339979,1734899452125,-500.0,0.00015068,2]
[346339981,1734899452134,-871.97,0.00015068,2]
[346339983,1734899452143,-804.52,0.00015068,2]
[346339985,1734899452152,-1069.41,0.00015068,2]
[346339987,1734899452161,-500.0,0.00015068,2]
[346339989,1734899452171,-500.0,0.00015068,2]
[346339991,1734899452180,-500.0,0.00015068,2]
[346339993,1734899452189,-500.0,0.00015068,2]
[346339995,1734899452198,-500.0,0.00015068,2]
[346339997,1734899452207,-500.0,0.00015068,2]
[346339999,1734899452217,-500.0,0.00015068,2]
[346340001,1734899452226,-500.0,0.00015068,2]
[346340003,1734899452235,-500.0,0.00015068,2]
[346340005,1734899452244,-634.01,0.00015068,2]
[346340007,1734899452253,-500.0,0.00015068,2]
[346340009,1734899452262,-672.07,0.00015068,2]
[346340011,1734899452271,-500.0,0.00015068,2]
[346340013,1734899452282,-537.68,0.00015068,2]
[346340015,1734899452292,-838.79,0.00015068,2]
[346340017,1734899452301,-3545.82,0.00015068,2]
[346340019,1734899452311,-500.0,0.00015068,2]
[346340021,1734899452320,-500.0,0.00015068,2]
[346340023,1734899452329,-500.0,0.00015068,2]
[346340025,1734899452338,-500.0,0.00015068,2]
[346340027,1734899452347,-483.38939409,0.00015068,2]
[346340029,1734899452357,-500.0,0.00015068,2]
[346340031,1734899452366,-500.0,0.00015068,2]
[346340033,1734899452376,-753.35,0.00015068,2]
[346340035,1734899452385,-537.01,0.00015068,2]
[346340037,1734899452394,-1685.38,0.00015068,2]
[346340039,1734899452404,-531.1,0.00015068,2]
[346340041,1734899452413,-11732.06,0.00015068,2]
[346340043,1734899452423,-500.0,0.00015068,2]
[346340045,1734899452432,-500.0,0.00015068,2]
[346340047,1734899452442,-512.75,0.00015068,2]
[346340049,1734899452451,-500.0,0.00015068,2]
[346340052,1734899452460,-1845.84,0.00015068,2]
[346340054,1734899452469,-500.0,0.00015068,2]
[346340056,1734899452479,-579.92,0.00015068,2]
[346340058,1734899452493,-2013.94,0.00015068,2]
[346340060,1734899452502,-506.27,0.00015068,2]
[346340062,1734899452513,-27229.4,0.00015068,2]
[346340064,1734899452522,-500.0,0.00015068,2]
[346340066,1734899452531,-500.0,0.00015068,2]
[346340068,1734899452541,-1318.98,0.00015068,2]
[346340070,1734899452550,-7122.45,0.00015068,2]
[346340072,1734899452560,-500.0,0.00015068,2]
[346340074,1734899452571,-1310.49,0.00015068,2]
[346340076,1734899452580,-9053.51,0.00015068,2]
[346340078,1734899452589,-500.0,0.00015068,2]
[346340080,1734899452599,-500.0,0.00015068,2]
[346340082,1734899452608,-500.0,0.00015068,2]
[346340084,1734899452617,-1434.67,0.00015068,2]
[346340086,1734899452626,-500.0,0.00015068,2]
[346340088,1734899452635,-500.0,0.00015068,2]
[346340090,1734899452645,-1202.81,0.00015068,2]
[346340091,1734899452655,-551.91,0.00015068,2]
[346340092,1734899452664,-563.64497763,0.00015068,2]
[346340093,1734899452673,-500.0,0.00015068,2]
[346340094,1734899452683,-500.0,0.00015068,2]
[346340095,1734899452692,-601.77,0.00015068,2]
[346340096,1734899452701,-637.13,0.00015068,2]
[346340097,1734899452711,-500.0,0.00015068,2]
[346340098,1734899452721,-753.29,0.00015068,2]
[346340099,1734899452731,-661.66,0.00015068,2]
[346340100,1734899452741,-2970.72,0.00015068,2]
[346340101,1734899452750,-500.0,0.00015068,2]
[346340102,1734899452759,-500.0,0.00015068,2]
[346340103,1734899452769,-1261.25,0.00015068,2]
[346340105,1734899452778,-500.0,0.00015068,2]
[346340106,1734899452787,-2865.71,0.00015068,2]
[346340107,1734899452797,-844.59,0.00015068,2]
[346340109,1734899452806,-3391.47,0.00015068,2]
[346340111,1734899452817,-639.42,0.00015068,2]
[346340113,1734899452826,-1571.74,0.00015068,2]
[346340115,1734899452836,-1500.92,0.00015068,2]
[346340117,1734899452845,-500.0,0.00015068,2]
[346340119,1734899452854,-946.43,0.00015068,2]
[346340121,1734899452863,-500.0,0.00015068,2]
[346340123,1734899452872,-1886.65,0.00015068,2]
[346340125,1734899452882,-718.82,0.00015068,2]
[346340127,1734899452891,-814.99,0.00015068,2]
[346340129,1734899452901,-500.0,0.00015068,2]
[346340131,1734899452910,-500.0,0.00015068,2]
[346340133,1734899452920,-500.0,0.00015068,2]
[346340135,1734899452929,-829.57,0.00015068,2]
[346340137,1734899452939,-2146.25,0.00015068,2]
[346340140,1734899452948,-500.0,0.00015196,2]
[346340142,1734899452958,-1500.0,0.00015222,2]
[346340144,1734899452968,-1411.79687101,0.00015242,2]
[346340146,1734899452977,-661.7,0.00015342,2]
[346340148,1734899452989,-500.0,0.00015342,2]
[346340150,1734899452998,-235.43975538,0.00015342,2]
[346340152,1734899453007,-500.0,0.00015342,2]
[346340154,1734899453017,-500.0,0.00015342,2]
[346340156,1734899453027,-500.0,0.00015342,2]
[346340158,1734899453036,-633.59,0.00015342,2]
[346340160,1734899453045,-582.95,0.00015342,2]
[346340162,1734899453055,-988.04,0.00015342,2]
[346340164,1734899453065,-996.84,0.00015342,2]
[346340166,1734899453074,-500.0,0.00015342,2]
[346340168,1734899453083,-500.0,0.00015342,2]
[346340170,1734899453093,-320.41199103,0.00015342,2]
[346340172,1734899453102,-500.0,0.00015342,2]
[346340174,1734899453112,-791.35,0.00015342,2]
[346340176,1734899453121,-500.0,0.00015342,2]
[346340178,1734899453130,-1032.67,0.00015342,2]
[346340180,1734899453139,-500.0,0.00015342,2]
[346340182,1734899453150,-500.0,0.00015342,2]
[346340184,1734899453160,-625.52,0.00015342,2]
[346340186,1734899453171,-622.29,0.00015342,2]
[346340188,1734899453183,-500.0,0.00015342,2]
[346340190,1734899453195,-577.8359969,0.00015342,2]
[346340192,1734899453205,-500.0,0.00015342,2]
[346340194,1734899453214,-752.42,0.00015342,2]
[346340196,1734899453223,-168.0,0.00015342,2]
[346340198,1734899453232,-629.53,0.00015342,2]
[346340200,1734899453242,-500.0,0.00015342,2]
[346340202,1734899453251,-2032.24,0.00015342,2]
[346340203,1734899453260,-500.0,0.00015342,2]
[346340205,1734899453270,-632.76,0.00015342,2]
[346340208,1734899453279,-955.66,0.00015342,2]
[346340210,1734899453289,-500.0,0.00015342,2]
[346340212,1734899453299,-601.33,0.00015342,2]
[346340213,1734899453308,-1256.22,0.00015342,2]
[346340216,1734899453318,-500.0,0.00015342,2]
[346340217,1734899453328,-664.31,0.00015342,2]
[346340220,1734899453337,-615.02,0.00015342,2]
[346340222,1734899453346,-516.04,0.00015342,2]
[346340224,1734899453356,-1257.34,0.00015342,2]
[346340226,1734899453366,-641.21,0.00015342,2]
[346340228,1734899453375,-500.0,0.00015342,2]
[346340230,1734899453384,-500.0,0.00015342,2]
[346340232,1734899453394,-500.0,0.00015342,2]
[346340234,1734899453403,-811.1,0.00015342,2]
[346340236,1734899453412,-500.0,0.00015342,2]
[346340238,1734899453421,-500.0,0.00015342,2]
[346340240,1734899453430,-972.67,0.00015342,2]
[346340242,1734899453439,-500.0,0.00015342,2]
[346340244,1734899453449,-871.97,0.00015342,2]
[346340246,1734899453459,-804.52,0.00015342,2]
[346340248,1734899453468,-1069.41,0.00015342,2]
[346340250,1734899453477,-500.0,0.00015342,2]
[346340252,1734899453486,-500.0,0.00015342,2]
[346340254,1734899453496,-500.0,0.00015342,2]
[346340256,1734899453506,-500.0,0.00015342,2]
[346340258,1734899453516,-500.0,0.00015342,2]
[346340260,1734899453525,-500.0,0.00015342,2]